bitfinex-derivatives/quotes_SOLF0:USTF0_20250301
["timestamp","ask_amount","ask_price","bid_price","bid_amount"]
[1740815286207,10.06,142.64,142.54,10.06]
[1740815286608,5.6104,142.65,142.54,10.06]
[1740815287108,0.05265263,142.61,142.58,0.05388994]
[1740815288407,0.05265263,142.61,142.6,5.6122]
[1740815289114,40.07588028,142.68,142.59,10.06]
[1740815289115,38.22858028,142.68,142.59,10.06]
[1740815289407,38.22858028,142.68,142.6,3.853]
[1740815289603,38.22858028,142.68,142.64,5.6104]
[1740815290204,0.05131777,142.67,142.65,0.04699101]
[1740815291310,5.66101777,142.67,142.65,0.04699101]
[1740815292215,0.05131777,142.67,142.65,0.04699101]
[1740815292415,5.6098,142.66,142.65,0.04699101]
[1740815292716,11.8735,142.66,142.56,10.06]
[1740815293011,5.6121,142.61,142.57,230.1132]
[1740815293312,5.6121,142.61,142.57,224.5]
[1740815293608,5.6121,142.61,142.58,5.66350741]
[1740815293811,0.04736731,142.6,142.58,5.66350741]
[1740815294206,5.65956731,142.6,142.58,0.05050741]
[1740815294612,0.04736731,142.6,142.58,0.05050741]
[1740815296416,0.04736731,142.6,142.59,5.6126]
[1740815297714,0.04736731,142.6,142.58,0.05050741]
[1740815298211,5.6126,142.59,142.58,0.05050741]
[1740815299611,5.6141,142.56,142.52,5.6152]
[1740815300015,1.9256,142.59,142.51,80.40748619]
[1740815300518,5.614,142.56,142.51,86.02308619]
[1740815300812,5.66716123,142.56,142.54,0.0507522]
[1740815301816,0.05316123,142.56,142.54,0.0507522]
[1740815303214,5.66726123,142.56,142.54,0.0507522]
[1740815303514,0.05316123,142.56,142.54,0.0507522]
[1740815303826,38.22858028,142.65,142.54,0.0507522]
[1740815304010,10.06,142.64,142.52,3.6705]
[1740815304207,9.55714507,142.63,142.52,3.6705]
[1740815304611,11.0,142.62,142.52,3.6705]
[1740815304815,16.6117,142.62,142.57,5.6131]
[1740815305016,0.05228239,142.58,142.56,0.05112429]
[1740815305210,16.6117,142.62,142.56,0.05112429]
[1740815305421,16.6117,142.62,142.58,5.6127]
[1740815305616,0.04438827,142.6,142.58,5.6127]
[1740815306419,0.04438827,142.6,142.59,5.6126]
[1740815307017,0.04438827,142.6,142.56,0.05112429]
[1740815308119,5.6139,142.56,142.52,5.6152]
[1740815308419,5.6139,142.56,142.51,80.40748619]
[1740815308621,15.6735,142.57,142.52,5.6152]
[1740815309024,10.06,142.57,142.51,80.40748619]
[1740815309319,0.04930856,142.56,142.53,5.66862307]
[1740815309621,0.04930856,142.56,142.53,0.05402307]
[1740815311518,5.66310856,142.56,142.53,0.05402307]
[1740815313223,0.04930856,142.56,142.53,0.05402307]
[1740815313813,5.6145,142.54,142.53,0.05402307]
[1740815319122,0.04930856,142.56,142.47,5.6172]
[1740815319423,1.8547,142.53,142.47,5.6172]
[1740815319627,15.6757,142.52,142.47,5.6172]
[1740815320130,5.66101443,142.51,142.48,0.05319072]
[1740815322026,5.66101443,142.51,142.48,5.67009072]
[1740815322434,0.04521443,142.51,142.48,5.67009072]
[1740815323733,0.04521443,142.51,142.49,5.6164]
[1740815324134,0.04521443,142.51,142.48,0.05319072]
[1740815325027,5.6162,142.5,142.48,0.05319072]
[1740815325334,0.04521443,142.51,142.48,0.05319072]
[1740815325533,5.6165,142.49,142.48,0.05319072]
[1740815328231,5.6163,142.5,142.48,0.05319072]
[1740815328437,0.04521443,142.51,142.48,0.05319072]
[1740815329440,0.04521443,142.51,142.49,5.6162]
[1740815332734,0.04521443,142.51,142.48,0.05319072]
[1740815333237,0.04521443,142.51,142.5,5.6161]
[1740815340756,0.04521443,142.51,142.49,1.9395]
[1740815340952,0.04521443,142.51,142.49,7.5558]
[1740815341154,0.04521443,142.51,142.48,0.05319072]
[1740815341655,5.6164,142.5,142.48,0.05319072]
[1740815342656,5.6165,142.49,142.48,0.05319072]
[1740815342957,0.04521443,142.51,142.48,0.05319072]
[1740815344457,0.04521443,142.51,142.5,5.6161]
[1740815344852,47.18799685,215.04,142.5,5.6161]
[1740815344853,381.28551811,142.82,142.51,188.6468]
[1740815345056,232.48905807,142.81,142.8,5.6043]
[1740815345259,224.48905807,142.81,142.8,17.1443]
[1740815345457,224.48905807,142.81,142.8,20.6443]
[1740815345658,198.45805807,142.81,142.8,20.6443]
[1740815345847,180.33545807,142.81,142.8,20.6443]
[1740815346051,150.08995807,142.81,142.8,20.6443]
[1740815346252,115.80645807,142.81,142.8,20.6443]
[1740815346449,0.0496532,142.82,142.8,87.64534154]
[1740815346657,5.32e-05,142.82,142.8,87.64534154]
[1740815347254,5.32e-05,142.82,142.81,5.71112277]
[1740815348858,5.32e-05,142.82,142.81,67.00104154]
[1740815350954,11.5,142.88,142.81,61.28991877]
[1740815351859,11.48,142.88,142.81,61.28991877]
[1740815352161,0.04831309,142.86,142.83,0.05047264]
[1740815352960,0.04831309,142.86,142.83,9.53146446]
[1740815354468,0.04831309,142.86,142.83,0.05047264]
[1740815355058,5.6016,142.87,142.83,0.05047264]
[1740815355262,4.86964901,142.87,142.83,0.05047264]
[1740815356351,0.05166396,142.86,142.83,0.05047264]
[1740815356558,5.65366396,142.86,142.83,0.05047264]
[1740815357365,5.6024,142.85,142.83,0.05047264]
[1740815357668,0.05166396,142.86,142.83,0.05047264]
[1740815363460,5.6019,142.87,142.83,0.05047264]
[1740815364266,11.72,142.88,142.83,0.05047264]
[1740815364670,0.04642355,142.87,142.83,0.05047264]
[1740815365167,5.6028,142.84,142.83,0.05047264]
[1740815365369,11.34,142.85,142.77,9.48099182]
[1740815365659,5.6034,142.83,142.77,9.48099182]
[1740815366564,0.04521362,142.81,142.79,0.050802]
[1740815367668,5.64951362,142.81,142.79,0.050802]
[1740815368261,0.04521362,142.81,142.79,0.050802]
[1740815368463,5.6043,142.8,142.79,0.050802]
[1740815370372,11.34,142.85,142.79,0.050802]
[1740815371571,0.05258166,142.83,142.79,0.050802]
[1740815372464,5.6042,142.81,142.79,0.050802]
[1740815373171,0.05258166,142.83,142.79,0.050802]
[1740815373372,5.6043,142.8,142.79,0.050802]
[1740815378774,11.22,142.8,142.74,6.48332515]
[1740815379374,5.6058,142.77,142.74,6.48332515]
[1740815379876,5.65516817,142.77,142.74,6.5328516]
[1740815380175,0.04936817,142.77,142.75,6.48332515]
[1740815383174,11.22,142.8,142.76,455.06572426]
[1740815384480,0.04675838,142.79,142.76,455.06572426]
[1740815384681,0.04675838,142.79,142.76,412.41625195]
[1740815385081,5.6055,142.77,142.76,412.41625195]
[1740815385780,1.85745567,142.8,142.76,412.41625195]
[1740815386984,5.6054,142.78,142.76,412.41625195]
[1740815387178,5.6054,142.78,142.76,113.21740159]
[1740815387873,5.6054,142.78,142.77,5.72085289]
[1740815389080,5.6055,142.77,142.76,113.21740159]
[1740815389674,5.65412157,142.79,142.76,113.21740159]
[1740815389882,0.04932157,142.79,142.76,113.21740159]
[1740815390583,0.04932157,142.79,142.76,58.12035348]
[1740815399388,5.65432157,142.79,142.76,58.12035348]
[1740815400691,5.6055,142.77,142.76,58.12035348]
[1740815402682,5.65422157,142.79,142.76,58.12035348]
[1740815403189,0.04932157,142.79,142.76,58.12035348]
[1740815403389,5.6055,142.77,142.76,58.12035348]
[1740815404388,0.04932157,142.79,142.76,58.12035348]
[1740815404588,5.6052,142.78,142.76,58.12035348]
[1740815405188,5.65442157,142.79,142.76,58.12035348]
[1740815405387,0.04932157,142.79,142.76,58.12035348]
[1740815406194,5.65422157,142.79,142.76,58.12035348]
[1740815409092,0.04932157,142.79,142.76,58.12035348]
[1740815413699,5.6041,142.81,142.76,58.12035348]
[1740815414906,0.04996654,142.8,142.77,0.04795404]
[1740815422118,5.65436654,142.8,142.77,0.04795404]
[1740815423219,0.04996654,142.8,142.77,0.04795404]
[1740815423421,5.6051,142.78,142.77,0.04795404]
[1740815426221,5.6049,142.79,142.77,0.04795404]
[1740815426420,1.96166654,142.8,142.77,0.04795404]
[1740815426814,5.6051,142.78,142.77,0.04795404]
[1740815429825,5.6048,142.79,142.77,0.04795404]
[1740815430817,0.04996654,142.8,142.77,0.04795404]
[1740815432424,5.65436654,142.8,142.77,0.04795404]
[1740815433727,0.04996654,142.8,142.77,0.04795404]
[1740815434029,0.04996654,142.8,142.77,1.94775404]
[1740815437528,0.04996654,142.8,142.77,190.59455404]
[1740815438431,3.8562,142.89,142.77,1.94775404]
[1740815438627,5.825,142.89,142.77,1.8998]
[1740815439434,5.6027,142.85,142.77,1.8998]
[1740815439640,5.825,142.89,142.82,0.04606505]
[1740815439828,5.825,142.89,142.82,188.69286505]
[1740815440137,7.5697,142.89,142.82,0.04606505]
[1740815440328,7.5697,142.89,142.82,188.69286505]
[1740815440724,1.9688,142.89,142.82,188.69286505]
[1740815440930,5.6015,142.88,142.82,188.69286505]
[1740815441425,5.6005,142.9,142.82,188.69286505]
[1740815441630,5.6005,142.9,142.82,188.6468]
[1740815441935,5.6005,142.9,142.85,0.04665477]
[1740815445738,5.6016,142.87,142.85,0.04665477]
[1740815445941,3.7208,142.94,142.82,188.6468]
[1740815446142,5.6019,142.87,142.85,0.04576098]
[1740815446351,5.6019,142.87,142.82,188.6468]
[1740815446544,5.6019,142.87,142.85,0.04515347]
[1740815448044,3.7208,142.94,142.85,0.04515347]
[1740815448240,3.7208,142.94,142.82,188.6468]
[1740815448441,3.7208,142.94,142.88,0.05365065]
[1740815449046,5.6009,142.89,142.88,0.05365065]
[1740815450353,10.58,142.9,142.82,188.6468]
[1740815450741,5.6018,142.87,142.82,188.6468]
[1740815450953,3.7208,142.94,142.82,188.6468]
[1740815451543,0.04959745,142.89,142.87,0.05272513]
[1740815451744,3.7208,142.94,142.87,188.69952513]
[1740815452045,0.04797869,142.89,142.87,188.69952513]
[1740815452251,5.5995,142.93,142.87,188.69952513]
[1740815452550,0.05315888,142.89,142.87,188.69952513]
[1740815452946,0.04674485,142.89,142.87,188.69952513]
[1740815457144,5.5973,142.98,142.87,188.69952513]
[1740815457345,5.7603,143.04,142.88,3.8676]
[1740815458151,5.7603,143.04,142.95,0.0520512]
[1740815458349,5.7603,143.04,142.88,3.8676]
[1740815458544,5.5969,142.99,142.98,0.0474274]
[1740815458749,5.7603,143.04,142.88,3.8676]
[1740815458949,5.7603,143.04,142.97,0.04973726]
[1740815459255,5.5973,142.98,142.97,0.04973726]
[1740815459846,5.5973,142.98,142.97,3.726e-05]
[1740815460051,5.5995,142.93,142.87,199.3468]
[1740815460250,1.9378,142.97,142.87,199.3468]
[1740815460853,1.8227,142.96,142.87,199.3468]
[1740815461048,0.04956216,142.93,142.91,0.05167275]
[1740815461448,0.04956216,142.93,142.87,10.7]
[1740815461851,0.04956216,142.93,142.84,268.85222125]
[1740815462053,10.68,142.95,142.84,268.85222125]
[1740815462753,0.04847464,142.91,142.88,0.05176598]
[1740815462954,5.6008,142.9,142.88,0.05176598]
[1740815463156,0.04847464,142.91,142.88,0.05176598]
[1740815464059,5.6008,142.89,142.88,0.05176598]
[1740815468464,7.4026,142.9,142.88,0.05176598]
[1740815468668,1.8021,142.9,142.88,0.05176598]
[1740815469766,5.6008,142.89,142.88,0.05176598]
[1740815474469,5.6022,142.86,142.83,10.66]
[1740815475464,5.65210277,142.86,142.83,10.71317072]
[1740815477270,0.04990277,142.86,142.83,10.71317072]
[1740815499493,0.04990277,142.86,142.83,0.05317072]
[1740815499697,5.6027,142.85,142.83,0.05317072]
[1740815503697,5.65190277,142.86,142.83,0.05317072]
[1740815504198,5.6024,142.85,142.83,0.05317072]
[1740815504901,5.6028,142.84,142.83,0.05317072]
[1740815510005,5.65200277,142.86,142.83,0.05317072]
[1740815510306,0.04990277,142.86,142.83,0.05317072]
[1740815510497,5.65190277,142.86,142.83,0.05317072]
[1740815510698,0.04990277,142.86,142.83,0.05317072]
[1740815512196,5.6024,142.85,142.83,0.05317072]
[1740815512405,0.04990277,142.86,142.83,0.05317072]
[1740815512799,5.6028,142.84,142.83,0.05317072]
[1740815533011,0.04990277,142.86,142.76,82.53227904]
[1740815533217,10.26,142.86,142.76,82.53227904]
[1740815533710,5.604,142.81,142.77,5.6052]
[1740815533910,5.604,142.81,142.76,82.53227904]
[1740815534107,0.05139468,142.8,142.78,0.04635888]
[1740815535217,5.65579468,142.8,142.78,0.04635888]
[1740815535918,0.05139468,142.8,142.78,0.04635888]
[1740815536124,5.6047,142.79,142.78,0.04635888]
[1740815540517,0.05139468,142.8,142.78,0.04635888]
[1740815558637,5.6047,142.79,142.78,0.04635888]
[1740815559832,0.05139468,142.8,142.78,0.04635888]
[1740815560032,5.65589468,142.8,142.78,0.04635888]
[1740815560237,0.05139468,142.8,142.78,0.04635888]
[1740815562441,0.05139468,142.8,142.78,5.65125888]
[1740815562938,0.05139468,142.8,142.78,0.04635888]
[1740815564443,5.65599468,142.8,142.78,0.04635888]
[1740815567441,0.05139468,142.8,142.78,0.04635888]
[1740815568843,0.05139468,142.8,142.78,5.65125888]
[1740815569042,0.05139468,142.8,142.78,0.04635888]
[1740815570147,5.65599468,142.8,142.78,0.04635888]
[1740815577957,5.6047,142.79,142.78,0.04635888]
[1740815579957,5.6052,142.78,142.74,5.6067]
[1740815580646,5.6061,142.76,142.72,188.6468]
[1740815581258,0.0480081,142.75,142.73,0.04423332]
[1740815592664,5.6546081,142.75,142.73,0.04423332]
[1740815593267,0.0480081,142.75,142.73,0.04423332]
[1740815613482,5.6546081,142.75,142.73,0.04423332]
[1740815613781,0.0480081,142.75,142.73,0.04423332]
[1740815614182,5.6067,142.74,142.73,0.04423332]
[1740815614983,5.6543081,142.75,142.73,0.04423332]
[1740815615379,0.0480081,142.75,142.73,0.04423332]
[1740815617789,5.6543081,142.75,142.73,0.04423332]
[1740815619184,0.0480081,142.75,142.73,0.04423332]
[1740815620291,5.6543081,142.75,142.73,0.04423332]
[1740815628389,5.6067,142.74,142.73,0.04423332]
[1740815629191,5.6079,142.71,142.67,5.6092]
[1740815630384,0.04982438,142.7,142.68,0.05013584]
[1740815635594,0.04982438,142.7,142.69,5.6086]
[1740815637393,0.04982438,142.7,142.68,0.05013584]
[1740815637693,0.04982438,142.7,142.68,5.65903584]
[1740815639992,0.04982438,142.7,142.68,0.05013584]
[1740815641590,5.65812438,142.7,142.68,0.05013584]
[1740815643894,0.04982438,142.7,142.68,0.05013584]
[1740815657806,5.6086,142.69,142.68,0.05013584]
[1740815659905,5.6096,142.67,142.63,5.6108]
[1740815660705,5.6103,142.65,142.61,5.6116]
[1740815661097,0.05038922,142.64,142.62,0.05210529]
[1740815663306,0.05038922,142.64,142.62,5.66340529]
[1740815663910,0.05038922,142.64,142.62,0.05210529]
[1740815669609,5.66138922,142.64,142.62,0.05210529]
[1740815669910,0.05038922,142.64,142.62,0.05210529]
[1740815670506,5.611,142.63,142.62,0.05210529]
[1740815671711,5.66108922,142.64,142.62,0.05210529]
[1740815672513,0.05038922,142.64,142.62,0.05210529]
[1740815673410,0.05038922,142.64,142.62,5.66340529]
[1740815674707,0.05038922,142.64,142.63,5.611]
[1740815674905,0.05038922,142.64,142.63,15.731]
[1740815675417,5.6084,142.7,142.65,5.6099]
[1740815676411,5.65633094,142.69,142.66,0.05060036]
[1740815679912,0.04763094,142.69,142.66,0.05060036]
[1740815681512,0.04763094,142.69,142.68,5.609]
[1740815682918,0.04763094,142.69,142.66,0.05060036]
[1740815685520,0.04763094,142.69,142.66,5.66040036]
[1740815687023,0.04763094,142.69,142.66,0.05060036]
[1740815687521,5.65663094,142.69,142.66,0.05060036]
[1740815695216,0.04763094,142.69,142.66,0.05060036]
[1740815696524,0.04763094,142.69,142.67,5.6091]
[1740815698624,0.04763094,142.69,142.68,5.609]
[1740815703228,1.8726,142.75,142.66,0.05060036]
[1740815703429,1.8726,142.75,142.71,5.6077]
[1740815704128,1.8726,142.75,142.72,5.6074]
[1740815704527,1.9210247,142.75,142.72,5.65989541]
[1740815704726,0.0484247,142.75,142.72,0.05249541]
[1740815707642,0.0484247,142.75,142.72,5.65969541]
[1740815713855,0.0484247,142.75,142.72,0.05249541]
[1740815714050,0.0484247,142.75,142.74,5.6067]
[1740815714252,0.0484247,142.75,142.74,15.7067]
[1740815716555,3.6673,142.83,142.78,5.6048]
[1740815717452,1.8907,142.84,142.74,10.1]
[1740815717755,0.04597923,142.8,142.78,0.04893558]
[1740815718056,32.75812547,142.87,142.79,10.1]
[1740815718254,6.918e-05,142.8,142.79,10.1]
[1740815718451,32.75812547,142.87,142.82,5.6035]
[1740815719353,38.35972547,142.87,142.81,5.6038]
[1740815719552,0.05308746,142.86,142.83,0.04514181]
[1740815721959,0.05308746,142.86,142.83,5.64804181]
[1740815722261,0.05308746,142.86,142.83,0.04514181]
[1740815722754,0.05308746,142.86,142.84,10.1]
[1740815723347,0.05308746,142.86,142.84,15.7025]
[1740815724153,0.05308746,142.86,142.85,5.6024]
[1740815724457,0.05308746,142.86,142.84,10.1]
[1740815725464,0.05308746,142.86,142.84,15.7026]
[1740815727257,0.05308746,142.86,142.85,5.6024]
[1740815728650,1.9705,142.93,142.84,10.1]
[1740815728855,1.9705,142.93,142.88,5.6008]
[1740815729459,1.9705,142.93,142.89,5.6007]
[1740815729960,0.05346137,142.92,142.9,0.04973393]
[1740815730264,0.05346137,142.92,142.9,5.65013393]
[1740815731261,0.05346137,142.92,142.9,0.04973393]
[1740815732457,0.05346137,142.92,142.84,188.6468]
[1740815732659,3.67336137,142.92,142.84,188.6468]
[1740815733060,5.6012,142.88,142.84,188.6468]
[1740815733565,0.05035667,142.87,142.85,0.04546277]
[1740815734066,5.65225667,142.87,142.85,0.04546277]
[1740815734368,0.05035667,142.87,142.85,0.04546277]
[1740815735361,0.05035667,142.87,142.86,5.602]
[1740815736264,0.05035667,142.87,142.85,0.04546277]
[1740815736470,0.05035667,142.87,142.85,5.64766277]
[1740815737466,0.05035667,142.87,142.85,0.04546277]
[1740815737671,0.05035667,142.87,142.86,5.602]
[1740815738768,0.05035667,142.87,142.85,5.64776277]
[1740815739268,5.667e-05,142.87,142.86,5.602]
[1740815739468,5.667e-05,142.87,142.86,194.2488]
[1740815739670,5.667e-05,142.87,142.86,196.0767]
[1740815740374,5.667e-05,142.87,142.86,199.5767]
[1740815742070,5.667e-05,142.87,142.86,196.0767]
[1740815742272,5.667e-05,142.87,142.86,199.5767]
[1740815749076,5.667e-05,142.87,142.86,196.0767]
[1740815750185,5.667e-05,142.87,142.86,204.3288]
[1740815754076,5.667e-05,142.87,142.85,0.04546277]
[1740815754281,5.667e-05,142.87,142.85,15.72756277]
[1740815754782,5.667e-05,142.87,142.85,10.12546277]
[1740815755085,5.667e-05,142.87,142.79,10.08]
[1740815755481,5.667e-05,142.87,142.82,5.6032]
[1740815756280,5.667e-05,142.87,142.83,0.04974883]
[1740815758483,5.602,142.86,142.83,0.04974883]
[1740815759586,5.667e-05,142.87,142.83,0.04974883]
[1740815759893,5.6024,142.85,142.83,0.04974883]
[1740815769793,5.667e-05,142.87,142.83,10.12974883]
[1740815771196,5.667e-05,142.87,142.83,0.04974883]
[1740815772496,5.667e-05,142.87,142.84,5.6025]
[1740815772995,5.667e-05,142.87,142.83,0.04974883]
[1740815773194,5.667e-05,142.87,142.83,5.65274883]
[1740815773395,5.667e-05,142.87,142.83,0.04974883]
[1740815774090,5.6022,142.86,142.83,0.04974883]
[1740815774298,5.667e-05,142.87,142.83,0.04974883]
[1740815775397,5.6025,142.85,142.83,0.04974883]
[1740815775597,5.667e-05,142.87,142.83,0.04974883]
[1740815775798,5.667e-05,142.87,142.84,10.08]
[1740815776010,5.667e-05,142.87,142.85,5.6023]
[1740815776494,5.667e-05,142.87,142.84,10.08]
[1740815776895,5.667e-05,142.87,142.84,15.6826]
[1740815777099,5.667e-05,142.87,142.84,10.08]
[1740815778601,5.667e-05,142.87,142.84,15.6827]
[1740815782910,5.667e-05,142.87,142.84,10.08]
[1740815783995,5.6026,142.85,142.83,0.04974883]
[1740815784197,5.667e-05,142.87,142.83,0.04974883]
[1740815786109,5.6025,142.85,142.83,0.04974883]
[1740815786506,5.6028,142.84,142.83,0.04974883]
[1740815787805,1.8057,142.86,142.83,0.04974883]
[1740815788006,5.6026,142.85,142.83,0.04974883]
[1740815788312,1.8057,142.86,142.83,0.04974883]
[1740815788909,5.6028,142.84,142.83,0.04974883]
[1740815794916,5.6036,142.82,142.78,5.605]
[1740815795315,1.8057,142.86,142.77,11.12181944]
[1740815795506,1.8057,142.86,142.79,5.6044]
[1740815796118,5.6034,142.83,142.81,0.05223144]
[1740815796319,0.05302668,142.84,142.81,0.05223144]
[1740815796519,5.6035,142.82,142.81,0.05223144]
[1740815805819,5.6049,142.79,142.74,287.78329675]
[1740815806021,5.6049,142.79,142.74,99.13649675]
[1740815806521,5.6049,142.79,142.74,104.74309675]
[1740815806922,0.05043446,142.78,142.75,0.04526072]
[1740815807422,5.6056,142.77,142.75,0.04526072]
[1740815808320,5.6059,142.76,142.75,0.04526072]
[1740815809329,5.6071,142.73,142.69,5.6085]
[1740815810023,5.6052,142.78,142.68,10.08]
[1740815810426,0.04958109,142.74,142.72,0.04484387]
[1740815811519,0.04958109,142.74,142.72,5.65194387]
[1740815812122,0.04958109,142.74,142.72,0.04484387]
[1740815814324,5.65658109,142.74,142.72,0.04484387]
[1740815814733,5.6071,142.73,142.72,0.04484387]
[1740815838030,5.6088,142.69,142.66,1.9117]
[1740815838226,1.9739,142.73,142.64,1.7874]
[1740815838435,5.684,142.73,142.64,7.3978]
[1740815838633,5.6093,142.68,142.64,7.3978]
[1740815839034,5.6093,142.68,142.64,5.6104]
[1740815839237,5.66260303,142.67,142.65,0.04532934]
[1740815839545,15.764,142.73,142.65,0.04532934]
[1740815839736,0.04942501,142.67,142.65,0.04532934]
[1740815840041,5.6098,142.66,142.65,0.04532934]
[1740815845843,0.04690329,142.67,142.56,11.9511]
[1740815845844,5.612,142.61,142.56,11.9511]
[1740815846245,3.7895,142.65,142.56,7.4647]
[1740815847040,0.04550072,142.62,142.59,0.04800005]
[1740815847538,5.6122,142.6,142.59,0.04800005]
[1740815855748,5.6121,142.61,142.59,0.04800005]
[1740815855946,0.04550072,142.62,142.59,0.04800005]
[1740815856147,0.04550072,142.62,142.6,10.1]
[1740815857543,0.04550072,142.62,142.61,5.6118]
[1740815858650,7.5321,142.7,142.62,5.6111]
[1740815858950,1.9236,142.7,142.62,5.6111]
[1740815859748,0.04571397,142.67,142.65,0.05177778]
[1740815862850,5.65541397,142.67,142.65,0.05177778]
[1740815863647,5.6098,142.66,142.65,0.05177778]
[1740815865850,0.04571397,142.67,142.65,0.05177778]
[1740815867050,5.6098,142.66,142.65,0.05177778]
[1740815867459,0.04571397,142.67,142.59,10.1]
[1740815867652,5.6111,142.63,142.59,15.7123]
[1740815868255,5.6115,142.62,142.59,15.7123]
[1740815868451,5.66249323,142.62,142.6,0.0465178]
[1740815868653,0.05099323,142.62,142.6,0.0465178]
[1740815871554,5.6118,142.61,142.6,0.0465178]
[1740815876463,0.05099323,142.62,142.6,0.0465178]
[1740815887269,5.66239323,142.62,142.6,0.0465178]
[1740815888476,0.05099323,142.62,142.6,5.6587178]
[1740815889974,0.05099323,142.62,142.6,0.0465178]
[1740815899081,0.05099323,142.62,142.6,5.6587178]
[1740815901181,0.05099323,142.62,142.61,5.6118]
[1740815902483,34.48522547,142.69,142.64,5.6102]
[1740815903582,0.0509842,142.68,142.65,0.04794926]
[1740815904182,5.6600842,142.68,142.65,0.04794926]
[1740815905075,0.0509842,142.68,142.65,0.04794926]
[1740815906488,0.0509842,142.68,142.65,5.65784926]
[1740815908603,0.0509842,142.68,142.66,5.6098]
[1740815908796,0.0509842,142.68,142.65,0.04794926]
[1740815910702,0.0509842,142.68,142.65,5.65794926]
[1740815910895,0.0509842,142.68,142.65,0.04794926]
[1740815911096,0.0509842,142.68,142.65,5.65804926]
[1740815911499,0.0509842,142.68,142.65,0.04794926]
[1740815912300,0.0509842,142.68,142.65,10.12794926]
[1740815912503,0.0509842,142.68,142.67,5.6094]
[1740815912798,0.0509842,142.68,142.65,10.12794926]
[1740815913313,0.0509842,142.68,142.65,0.04794926]
[1740815913603,5.6097,142.67,142.65,0.04794926]
[1740815917802,0.0509842,142.68,142.65,0.04794926]
[1740815917803,5.6098,142.66,142.65,0.04794926]
[1740815918006,0.0509842,142.68,142.6,93.28483143]
[1740815918203,1.8163,142.67,142.6,93.28483143]
[1740815918605,5.6111,142.63,142.6,93.28483143]
[1740815919207,5.65556609,142.63,142.6,93.33366288]
[1740815919608,5.6115,142.62,142.6,93.33366288]
[1740815919912,0.04446609,142.63,142.6,93.33366288]
[1740815920112,5.65556609,142.63,142.6,93.33366288]
[1740815920715,5.65556609,142.63,142.6,98.94576288]
[1740815921417,5.6114,142.62,142.6,93.33366288]
[1740815921714,5.6114,142.62,142.6,0.04883145]
[1740815922113,5.65566609,142.63,142.6,0.04883145]
[1740815923214,5.6115,142.62,142.6,0.04883145]
[1740815924618,0.04446609,142.63,142.6,0.04883145]
[1740815924812,5.6118,142.61,142.6,0.04883145]
[1740815926211,5.6116,142.62,142.6,0.04883145]
[1740815926413,0.04446609,142.63,142.5,36.81043182]
[1740815926714,1.9492,142.64,142.5,10.08]
[1740815927618,5.6575532,142.58,142.56,0.04607802]
[1740815927917,5.6131,142.58,142.56,0.04607802]
[1740815928216,5.65831226,142.58,142.56,0.04607802]
[1740815928821,0.04521226,142.58,142.56,0.04607802]
[1740815930622,0.04521226,142.58,142.56,5.65977802]
[1740815941029,0.04521226,142.58,142.57,5.6134]
[1740815943233,0.04521226,142.58,142.56,5.65957802]
[1740815944936,0.04521226,142.58,142.57,5.6134]
[1740815947338,0.04521226,142.58,142.56,0.04607802]
[1740815949449,0.04521226,142.58,142.56,5.65977802]
[1740815949752,0.04521226,142.58,142.56,0.04607802]
[1740815949958,5.65851226,142.58,142.56,0.04607802]
[1740815950160,0.04521226,142.58,142.56,0.04607802]
[1740815950553,0.04521226,142.58,142.47,1.9805]
[1740815950753,0.04521226,142.58,142.5,11.40256926]
[1740815951061,0.04521226,142.58,142.5,1.32256926]
[1740815951446,5.6139,142.56,142.51,5.6157]
[1740815951952,0.04537308,142.55,142.52,0.05142266]
[1740815954960,5.6149,142.54,142.52,0.05142266]
[1740815956263,5.6149,142.53,142.52,0.05142266]
[1740815969258,0.04537308,142.55,142.46,5.6176]
[1740815969464,3.7005,142.56,142.46,5.6176]
[1740815970471,5.6165,142.49,142.46,5.6176]
[1740815970965,0.05378209,142.49,142.46,5.66576168]
[1740815972569,0.05378209,142.49,142.46,0.04816168]
[1740815972765,0.05378209,142.49,142.47,5.6172]
[1740815975165,0.05378209,142.49,142.48,5.6169]
[1740815977464,0.05378209,142.49,142.46,0.04816168]
[1740815977665,5.67048209,142.49,142.46,0.04816168]
[1740815978770,5.617,142.48,142.46,0.04816168]
[1740815991472,5.6173,142.47,142.46,0.04816168]
[1740815991673,0.05378209,142.49,142.46,0.04816168]
[1740815992474,5.6172,142.48,142.46,0.04816168]
[1740815992877,0.05378209,142.49,142.46,10.12816168]
[1740815993175,0.05378209,142.49,142.48,5.6169]
[1740815994175,0.05378209,142.49,142.46,10.12816168]